bitfinex/quotes_ETHUSD_20250904
["timestamp","ask_amount","ask_price","bid_price","bid_amount"]
[1757000410042,0.8797,4309.3,4309.0,4.2]
[1757000410241,0.4238,4309.3,4309.2,2.32061635]
[1757000410446,4.054,4309.5,4309.3,2.32053988]
[1757000410447,0.116,4309.5,4309.3,2.32053988]
[1757000410648,0.116,4309.5,4309.2,0.2889]
[1757000410649,0.116,4309.5,4309.0,4.2]
[1757000410950,0.116,4309.5,4309.3,2.32054822]
[1757000411117,0.4559,4309.4,4309.1,2.32062236]
[1757000411319,0.3078,4309.2,4309.0,6.52070753]
[1757000411520,0.3078,4309.2,4309.0,4.2]
[1757000411837,0.4238,4309.2,4309.0,4.2]
[1757000412033,0.4238,4309.2,4309.0,6.52071695]
[1757000412358,0.4238,4309.2,4309.0,4.2]
[1757000412536,0.8797,4309.2,4309.0,4.2]
[1757000412919,0.116,4309.2,4309.1,2.3206702]
[1757000413339,0.116,4309.2,4309.1,3.0604702]
[1757000413548,0.116,4309.5,4309.4,2.32050705]
[1757000413743,1.735,4309.8,4309.4,2.32050705]
[1757000413744,0.025,4309.8,4309.5,2.3204548]
[1757000413941,0.025,4309.8,4309.7,2.63354712]
[1757000414341,0.025,4309.8,4309.7,3.55024712]
[1757000414564,0.025,4309.8,4309.7,4.45824712]
[1757000414850,0.025,4309.8,4309.7,8.51024712]
[1757000415021,0.025,4309.8,4309.7,11.51024712]
[1757000420374,0.025,4309.8,4309.7,15.71024712]
[1757000420582,0.025,4309.8,4309.7,15.70824712]
[1757000423080,0.025,4309.8,4309.7,11.65824712]
[1757000423383,0.025,4309.8,4309.7,15.70724712]
[1757000425167,0.025,4309.8,4309.7,15.70624712]
[1757000426455,1e-08,4309.8,4309.7,15.70624712]
[1757000426653,1e-08,4309.8,4309.7,15.59024712]
[1757000427876,1e-08,4309.8,4309.7,11.54224712]
[1757000428075,1e-08,4309.8,4309.7,15.58924712]
[1757000429681,1e-08,4309.8,4309.7,15.12934712]
[1757000429882,0.001,4310.1,4310.0,3.11218561]
[1757000429883,0.00020001,4310.1,4310.0,3.11218561]
[1757000430191,0.00020001,4310.1,4310.0,10.15918561]
[1757000430391,0.00020001,4310.1,4310.0,10.92918561]
[1757000430789,0.00020001,4310.1,4310.0,11.38908561]
[1757000431496,0.00020001,4310.1,4310.0,15.58908561]
[1757000432692,0.00020001,4310.1,4310.0,15.58708561]
[1757000433698,0.00020001,4310.1,4310.0,11.54208561]
[1757000433997,0.00020001,4310.1,4310.0,15.58708561]
[1757000434192,0.00020001,4310.1,4310.0,11.54208561]
[1757000434400,0.00020001,4310.1,4310.0,15.58708561]
[1757000435503,0.00020001,4310.1,4310.0,15.12618561]
[1757000436293,0.00020001,4310.1,4310.0,11.08218561]
[1757000436478,0.00020001,4310.1,4310.0,15.12618561]
[1757000436813,0.30710001,4310.1,4310.0,10.27218561]
[1757000436978,0.30710001,4310.1,4310.0,5.43618561]
[1757000437176,0.30710001,4310.1,4310.0,9.47918561]
[1757000437375,0.30710001,4310.1,4310.0,10.27118561]
[1757000437676,0.00020001,4310.1,4310.0,11.04118561]
[1757000438200,0.00020001,4310.1,4310.0,10.27118561]
[1757000438503,0.00020001,4310.1,4310.0,11.04118561]
[1757000438676,0.00020001,4310.1,4310.0,10.27118561]
[1757000438875,0.00020001,4310.1,4310.0,10.58438561]
[1757000439130,0.30710001,4310.1,4310.0,10.27118561]
[1757000439284,0.73720001,4310.1,4310.0,9.47818561]
[1757000440371,0.73720001,4310.1,4310.0,5.43618561]
[1757000442099,0.00020001,4310.1,4310.0,5.43618561]
[1757000442300,0.001,4311.0,4310.9,3.11170122]
[1757000442605,0.001,4311.0,4310.9,23.60086635]
[1757000442916,0.001,4311.0,4310.9,21.92986635]
[1757000443074,0.001,4311.0,4310.9,26.40196635]
[1757000443274,0.001,4311.0,4310.9,26.86186635]
[1757000444699,0.001,4311.0,4310.9,22.82086635]
[1757000444893,0.001,4311.0,4310.9,26.86186635]
[1757000445907,0.001,4311.0,4310.9,14.48980122]
[1757000446080,0.001,4311.0,4310.9,14.93080122]
[1757000447108,0.001,4311.0,4310.9,13.50080122]
[1757000447309,0.001,4311.0,4310.9,17.70080122]
[1757000449583,0.001,4311.0,4310.9,33.37442942]
[1757000451114,0.001,4311.0,4310.9,33.37242942]
[1757000451415,0.001,4312.1,4311.7,3.11127082]
[1757000451609,0.001,4312.1,4312.0,2.31910946]
[1757000451814,0.001,4312.1,4312.0,10.14910946]
[1757000451979,0.3048,4312.1,4312.0,10.14910946]
[1757000452183,0.3048,4312.1,4312.0,10.26510946]
[1757000452595,0.774,4312.1,4312.0,10.26510946]
[1757000452795,0.3048,4312.1,4312.0,10.26510946]
[1757000453082,0.001,4312.1,4312.0,10.26510946]
[1757000453494,0.001,4312.1,4312.0,10.35804076]
[1757000453695,0.001,4312.1,4312.0,10.66224076]
[1757000453907,0.4942,4312.8,4312.7,6.11073304]
[1757000453908,0.025,4312.8,4312.7,6.11073304]
[1757000454093,0.025,4312.8,4312.7,25.93836124]
[1757000454298,0.798,4312.8,4312.7,25.93836124]
[1757000454687,0.3288,4312.8,4312.7,25.93836124]
[1757000455201,0.025,4312.8,4312.7,25.93836124]
[1757000455402,0.328,4312.8,4312.7,25.93836124]
[1757000455585,0.001,4313.0,4312.9,3.11062551]
[1757000455782,0.001,4313.1,4313.0,5.31857175]
[1757000455983,0.001,4313.1,4313.0,6.52577175]
[1757000456399,0.001,4313.1,4313.0,6.06377175]
[1757000456598,0.001,4313.1,4310.6,0.462]
[1757000456599,1.25453863,4312.7,4310.6,0.462]
[1757000456891,1.1703821,4313.1,4310.6,0.462]
[1757000456892,0.2407,4312.6,4311.5,2.31937312]
[1757000457093,0.2407,4312.5,4311.7,2.31922134]
[1757000457300,0.3038,4311.8,4311.6,2.31931974]
[1757000457504,0.2407,4311.7,4310.8,0.029]
[1757000457799,0.2479,4311.7,4311.0,2.31964741]
[1757000458114,0.2479,4311.7,4311.2,2.3195398]
[1757000458316,0.4518,4311.6,4311.3,2.31948474]
[1757000458620,0.3038,4311.4,4311.3,2.319486]
[1757000458817,0.311,4311.4,4311.3,2.319486]
[1757000459005,0.5517,4311.4,4310.9,2.31970122]
[1757000459206,0.5517,4311.4,4311.0,6.35564741]
[1757000459207,0.2479,4311.3,4311.0,6.35564741]
[1757000459407,0.3009,4311.1,4310.9,2.31970107]
[1757000459618,0.3009,4311.1,4311.0,2.31964741]
[1757000459917,0.2407,4312.1,4311.7,2.31925694]
[1757000460124,0.2407,4312.8,4311.8,4.036]
[1757000460301,0.21,4312.9,4311.9,3.11116324]
[1757000460504,0.4518,4313.3,4312.1,2.31905568]
[1757000460686,0.4518,4313.3,4313.0,2.31857175]
[1757000461107,0.1,4313.1,4313.0,2.31857175]
[1757000461803,0.001,4313.1,4313.0,6.35457175]
[1757000462122,0.1,4313.1,4313.0,2.31857175]
[1757000462324,0.1,4313.1,4313.0,6.35457175]
[1757000462912,0.1,4313.1,4312.8,4.036]
[1757000463099,0.1,4313.1,4312.6,3.0]
[1757000463298,0.1,4313.1,4313.0,2.31857175]
[1757000463497,0.001,4313.1,4313.0,2.31857175]
[1757000463899,0.001,4313.1,4313.0,6.35357175]
[1757000464118,0.001,4313.1,4313.0,11.35277175]
[1757000465128,0.025,4313.8,4313.5,2.318303]
[1757000465302,1e-08,4313.8,4313.7,18.78382371]
[1757000465489,1e-08,4313.8,4313.7,26.12302371]
[1757000465693,1e-08,4313.8,4313.7,27.14202371]
[1757000465925,0.09900001,4313.8,4313.7,5.31819551]
[1757000466126,0.09900001,4313.8,4313.7,2.31819551]
[1757000467716,0.09900001,4313.8,4313.6,6.35324267]
[1757000468033,0.09900001,4313.8,4313.7,2.31819551]
[1757000469904,0.30900001,4313.8,4313.6,4.035]
[1757000470121,0.09900001,4313.8,4313.3,6.3523652]
[1757000470438,0.4507,4313.7,4313.3,2.3183652]
[1757000470636,1e-08,4313.8,4313.7,2.31819551]
[1757000470838,1e-08,4313.8,4313.7,7.12057746]
[1757000471018,1e-08,4313.8,4313.7,11.35139551]
[1757000472041,1e-08,4313.8,4313.7,13.05939551]
[1757000472544,0.001,4314.5,4314.4,3.10981939]
[1757000472727,0.001,4314.5,4314.4,7.14381939]
[1757000473248,0.001,4314.5,4314.4,6.35181939]
[1757000473413,0.1,4314.5,4314.4,9.35181939]
[1757000473618,0.001,4314.5,4314.4,9.35181939]
[1757000473820,0.001,4314.5,4314.4,9.65441939]
[1757000474042,0.001,4314.5,4314.4,9.35181939]
[1757000474948,0.1,4314.5,4314.4,9.35081939]
[1757000475256,0.3407,4314.5,4313.9,4.033]
[1757000475499,0.5507,4314.5,4314.4,2.31781939]
[1757000475746,0.001,4314.5,4314.4,6.35081939]
[1757000475934,0.001,4314.5,4314.4,6.65341939]
[1757000476256,0.001,4314.5,4314.4,6.35081939]
[1757000476842,0.1,4314.5,4314.4,2.31781939]
[1757000478652,0.216,4314.5,4313.9,0.116]
[1757000478818,0.216,4314.5,4314.3,2.31784802]
[1757000479145,0.216,4314.5,4313.9,6.46607889]
[1757000479346,0.216,4314.5,4314.2,2.31790676]
[1757000479750,0.216,4314.5,4313.9,4.148]
[1757000479751,0.216,4314.5,4314.0,2.3180343]
[1757000479921,0.1,4314.5,4313.9,4.032]
[1757000480250,0.116,4314.1,4313.9,4.032]
[1757000480549,0.116,4314.3,4314.2,2.31792684]
[1757000480919,0.2153,4314.3,4314.2,2.31792684]
[1757000481122,0.2153,4314.3,4313.9,4.032]
[1757000481338,0.2153,4314.3,4314.2,2.31792684]
[1757000482533,0.2153,4314.3,4313.9,4.032]
[1757000482730,0.2153,4314.3,4314.2,2.31792684]
[1757000482926,0.1152,4314.3,4314.2,2.31792684]
[1757000483350,0.001,4314.5,4314.4,2.31781939]
[1757000483530,0.117,4314.5,4314.4,2.31781939]
[1757000483733,0.001,4314.5,4314.4,7.75681939]
[1757000483931,0.001,4314.5,4314.4,11.78881939]
[1757000487877,0.001,4314.5,4314.4,6.82041939]
[1757000488094,0.1,4314.5,4314.3,0.116]
[1757000488255,0.5667,4314.4,4314.1,0.004]
[1757000488437,0.116,4314.4,4314.1,0.004]
[1757000488639,0.117,4314.5,4314.2,2.31792684]
[1757000488884,0.117,4314.5,4314.4,2.31781939]
[1757000489050,0.117,4314.5,4314.1,2.321963]
[1757000489051,0.216,4314.5,4314.1,0.004]
[1757000489237,0.4507,4314.4,4314.1,0.004]
[1757000489578,2.43392684,4314.2,4314.1,0.004]
[1757000489748,0.2161,4314.2,4314.1,0.004]
[1757000489950,0.1001,4314.2,4314.1,0.004]
[1757000490150,2.98362684,4314.2,4314.1,0.004]
[1757000491389,2.77472684,4314.2,4314.1,0.004]
[1757000491965,2.98362684,4314.2,4314.1,0.004]
[1757000492561,5.98362684,4314.2,4314.1,0.004]
[1757000494185,10.01562684,4314.2,4314.1,0.004]
[1757000496401,9.56602684,4314.2,4314.1,0.004]
[1757000497566,0.116,4314.2,4314.1,0.004]
[1757000497770,4.148,4314.2,4314.1,0.004]
[1757000497965,6.46592684,4314.2,4314.1,0.004]
[1757000498174,6.56492684,4314.2,4314.1,0.004]
[1757000498693,10.01562684,4314.2,4314.1,0.004]
[1757000498884,6.44892684,4314.2,4314.1,0.004]
[1757000501204,9.44892684,4314.2,4314.1,0.004]
[1757000501505,9.89962684,4314.2,4314.1,0.004]
[1757000502311,9.44892684,4314.2,4314.1,0.004]
[1757000504603,9.65892684,4314.2,4314.1,0.004]
[1757000504804,9.44892684,4314.2,4314.1,0.004]
[1757000505016,0.001,4314.5,4314.1,0.7584]
[1757000505185,4.031,4314.2,4314.1,1.2133]
[1757000505386,4.031,4314.2,4313.6,0.44565781]
[1757000505599,6.34892864,4314.2,4313.7,0.4549]
[1757000505805,6.34892864,4314.2,4313.2,0.004]
[1757000506011,2.31818108,4313.8,4313.3,4.2]
[1757000506213,4.031,4313.7,4313.3,4.2]
[1757000506413,2.31841049,4313.3,4313.2,0.004]
[1757000506612,6.34941049,4313.3,4313.2,0.004]
[1757000506819,6.63111049,4313.3,4313.2,0.004]
[1757000508944,6.74711049,4313.3,4313.2,0.004]
[1757000510628,2.71611049,4313.3,4313.2,0.004]
[1757000510836,6.46541049,4313.3,4313.2,0.004]
[1757000511202,6.34941049,4313.3,4313.2,0.004]
[1757000511528,6.46541049,4313.3,4313.2,0.004]
[1757000512138,6.56361049,4313.3,4313.2,0.004]
[1757000512336,6.46541049,4313.3,4313.2,0.004]
[1757000512836,9.82351049,4313.3,4313.2,0.004]
[1757000513038,2.31817994,4313.8,4313.2,0.004]
[1757000513039,0.35440902,4314.2,4313.2,0.7584]
[1757000513198,0.116,4314.4,4313.5,0.116]
[1757000513404,0.538,4314.4,4314.3,0.2896]
[1757000513606,0.538,4314.4,4313.3,0.9197]
[1757000513607,0.7522,4314.4,4313.3,0.9197]
[1757000513805,0.6362,4314.4,4313.3,0.9197]
[1757000514038,0.116,4313.4,4313.3,0.9197]
[1757000514242,4.206,4313.4,4313.3,1.2093]
[1757000514815,4.206,4313.4,4313.3,3.52771049]
[1757000515215,4.206,4313.4,4313.3,1.2093]
[1757000515518,4.206,4313.4,4313.2,0.004]
[1757000516130,4.206,4313.4,4313.2,0.4589]
[1757000516332,4.206,4313.4,4313.3,1.2093]
[1757000516544,4.206,4313.4,4313.3,3.52771049]
[1757000516860,4.206,4313.4,4313.3,0.2896]
[1757000517033,4.206,4313.4,4313.3,1.2093]
[1757000517337,1.708,4313.8,4313.6,2.31822422]
[1757000517507,1.708,4313.8,4313.2,0.004]
[1757000517508,4.086,4313.7,4313.5,2.31828928]
[1757000517842,0.001,4314.5,4314.4,2.31781939]
[1757000518155,0.05,4314.8,4314.7,2.31765823]
[1757000518514,0.05,4314.8,4314.7,3.52695823]
[1757000522330,0.05,4314.8,4314.7,7.31895823]
[1757000522537,0.05,4314.8,4314.7,7.43495823]
[1757000522845,0.001,4315.0,4314.9,2.31755081]
[1757000523049,0.001,4315.1,4315.0,3.1094971]
[1757000523359,0.001,4315.1,4315.0,7.3187971]
[1757000523561,0.001,4315.1,4315.0,7.4347971]
[1757000524255,0.001,4315.1,4315.0,11.5567971]
[1757000526061,0.001,4315.1,4315.0,11.72982603]
[1757000528928,0.001,4315.1,4315.0,11.71882603]
[1757000529758,0.001,4315.1,4315.0,11.71782603]
[1757000531458,0.001,4315.1,4315.0,11.71482603]
[1757000531758,0.0002,4315.1,4315.0,11.71382603]
[1757000532329,0.0002,4315.1,4315.0,11.59782603]
[1757000532528,0.0002,4315.1,4315.0,11.59682603]
[1757000533928,0.0002,4315.1,4315.0,7.49182603]
[1757000534328,0.0002,4315.1,4315.0,11.59282603]
[1757000536261,0.0002,4315.1,4315.0,11.59082603]
[1757000537630,0.0002,4315.1,4315.0,7.49182603]
[1757000537863,0.0002,4315.1,4315.0,11.58882603]
[1757000538448,0.001,4315.4,4315.0,11.58882603]
[1757000538449,1e-08,4315.8,4315.7,3.1091212]
[1757000538628,1e-08,4315.8,4315.7,22.0854486]
[1757000538834,0.001,4316.7,4316.2,2.31685278]
[1757000539030,0.001,4316.7,4316.2,9.4330213]
[1757000539361,0.001,4316.7,4316.2,10.59105278]
[1757000539734,0.001,4316.7,4316.2,6.49805278]
[1757000539937,0.025,4317.8,4317.7,2.31604789]
[1757000540136,0.2749,4317.7,4316.8,5.31653076]
[1757000540341,0.2749,4317.7,4317.5,2.31611457]
[1757000540537,0.2749,4317.7,4317.6,2.31610153]
[1757000541062,0.3731,4317.7,4317.6,2.31610153]
[1757000541963,0.634,4317.7,4317.4,2.3161939]
[1757000542267,0.634,4317.7,4317.0,4.095]
[1757000542479,0.634,4317.7,4317.5,2.31610988]
[1757000542676,0.3731,4317.7,4317.3,0.116]
[1757000542840,0.2732,4317.6,4317.3,0.116]
[1757000543368,0.2858,4317.4,4316.9,6.4054415]
[1757000543666,0.2858,4317.4,4316.5,4.088]
[1757000543873,0.4893,4317.4,4316.8,2.43252979]
[1757000544172,0.2858,4317.4,4317.3,2.31626247]
[1757000544533,0.6342,4317.4,4317.0,2.43242193]
[1757000544735,0.6342,4317.4,4317.0,0.116]
[1757000544932,0.0875,4317.3,4317.0,0.116]
[1757000545136,0.2838,4317.1,4317.0,2.4324194]
[1757000545367,0.2838,4317.1,4317.0,6.6324194]
[1757000545869,0.2838,4317.1,4317.0,6.51642344]
[1757000546970,0.6341,4317.1,4317.0,4.2]
[1757000547543,0.6341,4317.1,4316.1,2.31687872]
[1757000547746,2.86110589,4317.1,4316.4,2.31673223]
[1757000547940,2.86110589,4317.1,4316.1,2.43287872]
[1757000547941,0.0894,4317.0,4316.2,6.51683216]
[1757000548135,0.2819,4316.3,4316.2,6.51683216]
[1757000548538,0.116,4316.7,4316.3,2.31677562]
[1757000548866,0.116,4316.7,4316.2,6.51685278]
[1757000549040,0.116,4316.7,4316.5,2.31665236]
[1757000549462,0.0982,4316.6,4316.5,2.31665236]
[1757000549765,2.31610494,4317.6,4316.5,2.31665236]
[1757000549766,0.2609,4317.5,4316.5,3.04675236]
[1757000549959,0.116,4317.0,4316.7,2.31653762]
[1757000550269,0.116,4317.0,4316.5,2.31665236]
[1757000550466,0.116,4317.0,4316.7,2.31657026]
[1757000550674,0.116,4317.0,4316.7,2.31658442]
[1757000550883,0.2999,4317.8,4317.0,2.31641158]
[1757000551080,0.025,4317.8,4317.4,2.3161958]
[1757000551283,0.2142,4317.5,4317.1,2.3163206]
[1757000551578,0.2142,4317.5,4317.0,2.31637978]
[1757000551746,0.4874,4317.5,4317.0,2.31637978]
[1757000551950,0.4751,4317.5,4317.0,2.31637978]
[1757000552147,0.7483,4317.5,4317.0,2.31637978]
[1757000552450,0.5341,4317.4,4316.6,4.2]
[1757000552650,0.1,4316.7,4316.6,4.2]
[1757000552868,0.1,4316.7,4316.4,4.2]
[1757000553166,0.116,4317.1,4316.5,2.31669176]
[1757000553367,0.116,4317.1,4316.4,4.2]
[1757000553587,0.2858,4316.5,4316.4,6.51674543]
[1757000554080,0.2858,4316.5,4316.3,0.116]
[1757000554403,0.116,4317.1,4316.6,2.31662377]
[1757000554576,0.2142,4316.7,4316.6,2.31662377]
[1757000554784,4.707,4317.9,4316.6,1.1812]
[1757000554957,0.116,4317.1,4316.9,2.31646501]
[1757000555280,0.116,4317.1,4317.0,2.61262344]
[1757000555481,0.116,4317.6,4317.4,2.31616933]
[1757000555680,1.823,4317.9,4317.5,2.3161096]
[1757000556089,0.0982,4317.6,4317.5,2.3161096]
[1757000556265,1.823,4317.9,4317.5,2.3161096]
[1757000556583,0.0982,4317.6,4317.4,2.31619726]
[1757000556780,0.0982,4317.6,4317.3,2.31625453]
[1757000556980,0.0982,4317.6,4317.2,2.31630357]
[1757000557181,2.68674807,4317.6,4316.6,0.4511]
[1757000557386,0.116,4317.2,4316.6,0.4511]
[1757000557568,0.116,4317.2,4316.7,0.4339]
[1757000557882,0.116,4317.2,4317.0,2.3164139]
[1757000558082,0.2858,4317.1,4316.7,2.31657741]
[1757000558384,0.116,4316.6,4316.5,2.31669176]
[1757000560580,0.116,4316.6,4316.5,2.61289176]
[1757000560904,0.2991,4317.8,4316.7,2.31653614]
[1757000561113,0.116,4316.9,4316.6,2.31663809]
[1757000561465,0.116,4316.9,4316.5,0.885]
[1757000561765,0.2858,4316.6,4316.5,2.31669176]
[1757000561965,0.116,4316.9,4316.6,2.31663809]
[1757000562273,0.116,4317.1,4317.0,2.31642344]
[1757000563066,0.116,4317.1,4317.0,2.61262344]
[1757000563274,0.116,4317.1,4316.9,2.31646301]
[1757000563507,0.116,4317.1,4316.5,0.116]
[1757000563709,2.31621048,4317.4,4316.7,2.31657734]
[1757000563907,0.2134,4316.8,4316.7,2.31657734]
[1757000564206,0.2134,4316.8,4316.6,2.31662369]
[1757000564411,0.2134,4316.8,4316.2,0.4511]
[1757000564904,0.2134,4316.8,4316.2,2.31684731]
[1757000565212,0.2134,4316.8,4316.1,0.4595]
[1757000565506,0.116,4317.1,4316.8,2.31652602]
[1757000565901,0.0974,4316.9,4316.7,2.31657276]
[1757000566101,0.0974,4316.9,4316.7,2.31653608]
[1757000566303,0.0974,4316.9,4316.5,0.116]
[1757000566612,0.0974,4316.9,4316.6,2.31660995]
[1757000567012,0.116,4316.7,4316.6,2.31660995]
[1757000567910,0.116,4316.7,4316.6,2.63280995]
[1757000568208,2.31571071,4318.4,4316.6,2.63280995]
[1757000568209,4.071,4317.4,4317.1,2.31633465]
[1757000568517,0.116,4317.2,4317.1,2.31633465]
[1757000568910,0.116,4317.2,4317.1,2.63253465]
[1757000569116,0.116,4317.2,4317.1,2.31633465]
[1757000569703,0.116,4317.2,4317.1,3.09203465]
[1757000570104,0.116,4317.2,4317.1,2.63253465]
[1757000570318,0.116,4317.2,4317.1,2.31633465]
[1757000570540,0.116,4317.2,4317.1,2.63253465]
[1757000571142,0.116,4317.2,4317.1,3.12153465]
[1757000571339,4.071,4317.4,4317.3,2.31626247]
[1757000571645,4.187,4317.4,4317.3,2.63246247]
[1757000571815,4.187,4317.4,4317.3,2.31626247]
[1757000572134,4.187,4317.4,4316.6,2.4325982]
[1757000572135,4.2844,4317.4,4316.9,2.31647112]
[1757000572441,4.2844,4317.4,4317.1,2.31635574]
[1757000572836,4.2844,4317.4,4317.1,2.31633098]
[1757000573139,4.2844,4317.4,4316.9,2.31643806]
[1757000573720,4.1684,4317.4,4316.8,0.004]
[1757000573920,0.116,4316.9,4316.8,2.3204888]
[1757000574112,0.429,4316.9,4316.8,2.3204888]
[1757000574833,0.429,4316.9,4316.8,0.004]
[1757000575714,0.2134,4316.9,4316.8,0.004]
[1757000576140,2.8022771,4316.9,4316.8,0.004]
[1757000576337,4.7701771,4316.9,4316.8,0.004]
[1757000576507,7.7701771,4316.9,4316.8,0.004]
[1757000578569,7.2368771,4316.9,4316.8,0.004]
[1757000578749,11.2998771,4316.9,4316.8,0.004]
[1757000580360,11.8331771,4316.9,4316.8,0.004]
[1757000581065,11.5722771,4316.9,4316.8,0.004]
[1757000581448,11.2998771,4316.9,4316.8,0.004]
[1757000582555,8.9826,4316.9,4316.8,0.004]
[1757000583149,11.2990771,4316.9,4316.8,0.004]
[1757000585982,11.8323771,4316.9,4316.8,0.004]
[1757000586375,1.9196,4316.9,4316.8,0.004]
[1757000586582,5.758,4316.9,4316.8,1.2687]
[1757000586889,5.874,4316.9,4316.8,1.2687]
[1757000587390,5.878,4316.9,4316.8,1.2687]
[1757000587589,0.116,4317.2,4317.1,2.31636904]
[1757000587883,4.173,4317.2,4317.1,1.2647]
[1757000589572,4.173,4317.2,4316.8,0.4635]
[1757000589771,4.057,4317.2,4317.1,0.3162]
[1757000590086,4.057,4317.2,4317.1,1.2647]
[1757000590994,4.173,4317.2,4316.8,0.004]
[1757000591194,0.116,4316.9,4316.8,0.004]
[1757000591410,4.167,4316.9,4316.8,0.9525]
[1757000591606,4.167,4316.9,4316.8,0.7797]
[1757000591759,4.167,4316.9,4316.8,0.3202]
[1757000591955,6.5800771,4316.9,4316.8,0.004]
[1757000592271,4.167,4316.9,4316.8,0.004]
[1757000592800,4.167,4316.9,4316.8,0.7797]
[1757000592961,0.116,4316.9,4316.8,1.2687]
[1757000593161,4.165,4316.9,4316.8,3.58523076]
[1757000593360,4.049,4316.9,4316.8,3.58523076]
[1757000594309,4.049,4316.9,4316.8,1.2687]
[1757000594600,4.049,4316.9,4316.8,3.58523076]
[1757000595308,4.049,4316.9,4316.8,0.3202]
[1757000595589,4.049,4316.9,4316.8,0.004]
[1757000595758,6.4620771,4316.9,4316.8,0.004]
[1757000597804,9.4620771,4316.9,4316.8,0.004]
[1757000599002,11.1690771,4316.9,4316.8,0.004]
[1757000599361,11.0724771,4316.9,4316.8,0.004]
[1757000599561,11.1708771,4316.9,4316.8,0.004]
[1757000601787,11.0724771,4316.9,4316.8,0.004]
[1757000602094,8.756,4316.9,4316.8,1.2004]
[1757000602293,5.756,4316.9,4316.8,1.2004]
[1757000602600,5.747,4316.9,4316.8,1.2004]
[1757000602997,5.863,4316.9,4316.8,1.2004]
[1757000604397,5.863,4316.9,4316.8,0.2967]
[1757000604586,8.1794771,4316.9,4316.8,0.004]
[1757000604781,8.2760771,4316.9,4316.8,0.004]
[1757000605024,8.1794771,4316.9,4316.8,0.004]
[1757000605791,8.2778771,4316.9,4316.8,0.004]
[1757000606616,8.1794771,4316.9,4316.8,0.004]
[1757000606931,8.1794771,4316.9,4316.8,1.2004]
[1757000607295,8.1794771,4316.9,4316.8,0.7382]
[1757000607619,8.1794771,4316.9,4316.8,0.2967]
[1757000607824,8.1794771,4316.9,4316.8,0.004]
[1757000608030,8.2752771,4316.9,4316.8,0.004]
[1757000608810,8.1786771,4316.9,4316.8,0.004]
[1757000609007,8.1786771,4316.9,4316.8,0.2967]
[1757000609411,8.1796771,4316.9,4316.8,0.004]
[1757000609900,5.8632,4316.9,4316.8,1.2004]
[1757000611824,8.2762771,4316.9,4316.8,0.004]
[1757000612220,8.1796771,4316.9,4316.8,0.2967]
[1757000613507,5.8632,4316.9,4316.8,1.2004]
[1757000613919,8.1796771,4316.9,4316.8,0.2967]
[1757000614125,8.2762771,4316.9,4316.8,0.004]
[1757000617134,8.1796771,4316.9,4316.8,0.004]
[1757000617736,8.2762771,4316.9,4316.8,0.004]
[1757000618731,8.1796771,4316.9,4316.8,0.004]
[1757000622250,8.2762771,4316.9,4316.8,0.004]
[1757000622551,8.1796771,4316.9,4316.8,0.004]
[1757000622919,8.2762771,4316.9,4316.8,0.004]
[1757000623523,12.6007771,4316.9,4316.8,1e-08]
[1757000624119,2.31674543,4316.4,4316.3,1e-08]
[1757000624370,12.34168013,4316.4,4316.3,1e-08]
[1757000624520,12.97078013,4316.4,4316.3,1e-08]
[1757000625153,15.97078013,4316.4,4316.3,1e-08]
[1757000625450,6.10879911,4316.3,4314.6,0.9079]
[1757000625751,2.43355081,4314.9,4314.6,0.004]
[1757000625959,6.47355081,4314.9,4314.6,0.4346]
[1757000626143,6.47355081,4314.9,4314.8,0.7441]
[1757000627665,6.47355081,4314.9,4314.8,0.7481]
[1757000627965,6.47355081,4314.9,4314.8,1.2214]
[1757000628630,2.43355081,4314.9,4314.8,1.2214]
[1757000628826,6.47355081,4314.9,4314.8,1.2214]
[1757000629368,6.47355081,4314.9,4314.8,0.3175]
[1757000629871,6.47355081,4314.9,4314.8,1.2214]
[1757000632058,4.156,4314.9,4314.8,1.2214]
[1757000632260,0.116,4314.9,4314.8,1.2214]
[1757000632461,4.156,4314.9,4314.8,1.2214]
[1757000632960,6.47355081,4314.9,4314.8,1.2214]
[1757000633158,6.75975081,4314.9,4314.8,0.029]
[1757000633557,6.75895081,4314.9,4314.8,0.029]
[1757000634454,9.75895081,4314.9,4314.8,0.029]
[1757000634646,10.10375081,4314.9,4314.8,0.029]
[1757000635487,3.10965823,4314.7,4314.6,1e-08]
[1757000635801,10.14865823,4314.7,4314.6,1e-08]
[1757000635955,10.77955823,4314.7,4314.6,1e-08]
[1757000636282,10.43275823,4314.7,4314.6,1e-08]
[1757000636582,5.31765823,4314.7,4314.6,1e-08]
[1757000636877,9.35665823,4314.7,4314.6,1e-08]
[1757000637184,5.31765823,4314.7,4314.6,1e-08]
[1757000637663,9.35765823,4314.7,4314.6,1e-08]
[1757000637865,9.35765823,4314.7,4314.6,0.28850001]
[1757000638070,9.35665823,4314.7,4314.6,0.28850001]
[1757000638472,9.35665823,4314.7,4314.6,1.19240001]
[1757000638658,4.039,4314.7,4314.6,1.19240001]
[1757000641793,6.35665823,4314.7,4314.6,1.19240001]
[1757000642295,4.039,4314.7,4314.6,1.19240001]
[1757000643120,4.155,4314.7,4314.6,1.19240001]
[1757000643490,6.47265823,4314.7,4314.6,1.19240001]
[1757000644021,4.155,4314.7,4314.6,1.19240001]
[1757000645023,6.47265823,4314.7,4314.6,1.19240001]
[1757000647301,6.47265823,4314.7,4314.6,0.28850001]
[1757000647694,0.116,4314.7,4314.6,1.19240001]
[1757000647900,4.154,4314.7,4314.6,1.19240001]